[Event "Schack-SM 2024: Veteran-SM 65+"]
[Site "Fortnox Arena, Hejaregatan 5, Vaxjo, Sweden"]
[Date "2024.07.04"]
[Round "6.7"]
[White "Alquist, Erik"]
[Black "Gromark, Per-Olof"]
[Result "0-1"]
[TimeControl "90 minutes for 40 moves + 30 minutes for the rest of the game + 30 seconds per move from move one."]
[WhiteElo "1968"]
[BlackElo "1898"]

1. e4 {[%clk 01:30:56]} {[%emt 00:00:04]} c5 {[%clk 01:30:48]} {[%emt
00:00:11]} 2. Nf3 {[%clk 01:31:20]} {[%emt 00:00:07]} d6 {[%clk 01:31:12]}
{[%emt 00:00:06]} 3. d4 {[%clk 01:31:37]} {[%emt 00:00:13]} cxd4 {[%clk
01:31:36]} {[%emt 00:00:06]} 4. Nxd4 {[%clk 01:32:02]} {[%emt 00:00:05]} Nf6
{[%emt 00:00:10]} 5. Nc3 {[%emt 00:00:08]} a6 {[%clk 01:31:09]} {[%emt
00:00:39]} 6. h3 {[%clk 01:31:43]} {[%emt 00:00:48]} e5 {[%clk 01:30:20]}
{[%emt 00:01:20]} 7. Nf3 {[%clk 01:31:57]} {[%emt 00:00:16]} Be6 {[%clk
01:28:05]} {[%emt 00:02:44]} 8. Ng5 {[%clk 01:32:09]} {[%emt 00:00:19]} Nc6
{[%clk 01:25:07]} {[%emt 00:03:28]} 9. Nxe6 {[%clk 01:30:18]} {[%emt 00:02:21]}
fxe6 {[%clk 01:25:14]} {[%emt 00:00:22]} 10. Bc4 {[%clk 01:28:58]} {[%emt
00:01:51]} Qd7 {[%clk 01:20:04]} {[%emt 00:05:41]} 11. a3 {[%clk 01:26:09]}
{[%emt 00:03:19]} Be7 {[%clk 01:18:19]} {[%emt 00:02:13]} 12. Be3 {[%clk
01:22:40]} {[%emt 00:04:01]} b5 {[%clk 01:14:53]} {[%emt 00:03:55]} 13. Ba2
{[%clk 01:22:49]} {[%emt 00:00:20]} O-O {[%clk 01:12:48]} {[%emt 00:02:36]} 14.
Qd3 {[%clk 01:17:50]} {[%emt 00:05:29]} Kh8 {[%clk 01:09:48]} {[%emt 00:03:30]}
15. O-O {[%clk 01:15:42]} {[%emt 00:02:39]} Rac8 {[%clk 00:57:32]} {[%emt
00:12:45]} 16. Rad1 {[%clk 01:15:03]} {[%emt 00:01:09]} Na5 {[%clk 00:53:21]}
{[%emt 00:04:41]} 17. Bc1 {[%clk 01:09:24]} {[%emt 00:06:10]} Nc4 {[%clk
00:51:58]} {[%emt 00:01:52]} 18. a4 {[%clk 01:06:27]} {[%emt 00:03:28]} Qc6
{[%clk 00:46:11]} {[%emt 00:06:16]} 19. axb5 {[%clk 01:00:14]} {[%emt
00:06:43]} axb5 {[%clk 00:46:22]} {[%emt 00:00:20]} 20. Bxc4 {[%clk 00:55:48]}
{[%emt 00:04:56]} Qxc4 {[%clk 00:44:14]} {[%emt 00:02:37]} 21. Qxc4 {[%clk
00:50:59]} {[%emt 00:05:19]} Rxc4 {[%clk 00:43:58]} {[%emt 00:00:45]} 22. Nxb5
{[%clk 00:50:22]} {[%emt 00:01:08]} Nxe4 {[%clk 00:41:26]} {[%emt 00:03:02]} 23.
f3 {[%clk 00:48:37]} {[%emt 00:02:15]} Ng3 {[%clk 00:37:42]} {[%emt 00:04:13]}
24. Rf2 {[%clk 00:48:47]} {[%emt 00:00:21]} d5 {[%clk 00:37:14]} {[%emt
00:00:58]} 25. Kh2 {[%clk 00:46:52]} {[%emt 00:02:25]} Nf5 {[%clk 00:35:10]}
{[%emt 00:02:34]} 26. Re2 {[%clk 00:45:32]} {[%emt 00:01:49]} Rb8 {[%clk
00:27:59]} {[%emt 00:07:41]} 27. Na3 {[%clk 00:38:39]} {[%emt 00:07:24]} Rd4
{[%clk 00:27:50]} {[%emt 00:00:38]} 28. Rxd4 {[%clk 00:35:59]} {[%emt
00:03:12]} Nxd4 {[%clk 00:28:19]} {[%emt 00:00:01]} 29. Re1 {[%clk 00:36:11]}
{[%emt 00:00:17]} Kg8 {[%clk 00:22:18]} {[%emt 00:06:31]} 30. c3 {[%clk
00:34:18]} {[%emt 00:02:23]} Nc6 {[%clk 00:22:23]} {[%emt 00:00:25]} 31. Nc2
{[%clk 00:33:58]} {[%emt 00:00:50]} Kf7 {[%clk 00:22:32]} {[%emt 00:00:20]} 32.
Kg3 {[%clk 00:32:50]} {[%emt 00:01:39]} Na5 {[%clk 00:21:32]} {[%emt 00:01:29]}
33. b4 {[%clk 00:27:44]} {[%emt 00:05:36]} Nc4 {[%clk 00:21:50]} {[%emt
00:00:13]} 34. Ne3 {[%clk 00:27:27]} {[%emt 00:00:46]} Rc8 {[%clk 00:17:11]}
{[%emt 00:05:10]} 35. Kf2 {[%clk 00:20:14]} {[%emt 00:07:42]} Nxe3 {[%clk
00:13:13]} {[%emt 00:04:29]} 36. Rxe3 {[%clk 00:19:31]} {[%emt 00:01:12]} Bxb4
{[%clk 00:12:06]} {[%emt 00:01:38]} 37. cxb4 {[%clk 00:19:06]} {[%emt
00:00:56]} Rxc1 {[%clk 00:12:30]} {[%emt 00:00:05]} 38. Rb3 {[%clk 00:19:30]}
{[%emt 00:00:06]} Rc6 {[%clk 00:09:45]} {[%emt 00:03:15]} 39. Ke3 {[%clk
00:17:39]} {[%emt 00:02:20]} Ke7 {[%clk 00:09:57]} {[%emt 00:00:19]} 40. f4
{[%clk 00:03:35]} {[%emt 00:14:33]} exf4+ {[%clk 00:07:24]} {[%emt 00:03:03]}
41. Kxf4 {[%clk 00:03:40]} {[%emt 00:00:26]} Kd6 {[%clk 00:07:28]} {[%emt
00:00:26]} 42. b5 {[%clk 00:01:23]} {[%emt 00:02:48]} Rb6 {[%clk 00:07:26]}
{[%emt 00:00:31]} 43. Ra3 {[%clk 00:01:19]} {[%emt 00:00:34]} e5+ {[%clk
00:04:22]} {[%emt 00:03:34]} 44. Ke3 {[%clk 00:00:45]} {[%emt 00:01:03]} Rb7
{[%clk 00:02:56]} {[%emt 00:01:57]} 45. Ra6+ {[%clk 00:28:59]} {[%emt
00:02:16]} Kc5 {[%clk 00:29:57]} {[%emt 00:03:28]} 46. Re6 {[%clk 00:28:24]}
{[%emt 00:01:05]} e4 {[%clk 00:26:46]} {[%emt 00:03:42]} 47. b6 {[%clk
00:28:33]} {[%emt 00:00:21]} Rxb6 {[%clk 00:26:47]} {[%emt 00:00:30]} 48. Re7
{[%clk 00:28:57]} {[%emt 00:00:05]} Rg6 {[%clk 00:26:26]} {[%emt 00:00:51]} 49.
g4 {[%clk 00:28:58]} {[%emt 00:00:28]} Kd6 {[%clk 00:26:11]} {[%emt 00:00:45]}
50. Re8 {[%clk 00:29:04]} {[%emt 00:00:25]} Re6 {[%clk 00:25:46]} {[%emt
00:00:55]} 51. Rg8 {[%clk 00:27:54]} {[%emt 00:01:40]} Re7 {[%clk 00:25:37]}
{[%emt 00:00:39]} 52. Rd8+ {[%clk 00:27:42]} {[%emt 00:00:42]} Ke5 {[%clk
00:25:44]} {[%emt 00:00:23]} 53. h4 {[%clk 00:27:52]} {[%emt 00:00:21]} h6
{[%clk 00:23:01]} {[%emt 00:03:12]} 54. h5 {[%clk 00:27:58]} {[%emt 00:00:25]}
Rc7 {[%clk 00:21:50]} {[%emt 00:01:40]} 55. Re8+ {[%clk 00:28:04]} {[%emt
00:00:25]} Kd6 {[%clk 00:20:15]} {[%emt 00:02:04]} 56. Rd8+ {[%clk 00:27:59]}
{[%emt 00:00:35]} Kc5 {[%clk 00:20:28]} {[%emt 00:00:18]} 57. Rg8 {[%clk
00:28:16]} {[%emt 00:00:13]} Kc4 {[%clk 00:19:51]} {[%emt 00:01:06]} 58. Rf8
{[%clk 00:28:12]} {[%emt 00:00:33]} d4+ {[%clk 00:19:31]} {[%emt 00:00:53]} 59.
Kxe4 {[%clk 00:28:23]} {[%emt 00:00:19]} Re7 {[%clk 00:19:49]} {[%emt
00:00:10]} 0-1

[Event "Schack-SM 2024: Veteran-SM 65+"]
[Site "Fortnox Arena, Hejaregatan 5, Vaxjo, Sweden"]
[Date "2024.07.04"]
[Round "6.1"]
[White "Magnussen, Pal"]
[Black "Engstrom, Kaj"]
[Result "0-1"]
[TimeControl "90 minutes for 40 moves + 30 minutes for the rest of the game + 30 seconds per move from move one."]
[WhiteElo "1905"]
[BlackElo "2163"]

1. e4 {[%clk 01:30:56]} {[%emt 00:00:04]} c5 {[%clk 01:30:57]} {[%emt
00:00:04]} 2. Nf3 {[%clk 01:31:11]} {[%emt 00:00:15]} e6 {[%clk 01:31:23]}
{[%emt 00:00:05]} 3. Qe2 {[%clk 01:31:17]} {[%emt 00:00:22]} Nc6 {[%clk
01:31:24]} {[%emt 00:00:30]} 4. g3 {[%clk 01:28:07]} {[%emt 00:03:40]} Be7
{[%clk 01:25:20]} {[%emt 00:06:34]} 5. Bg2 {[%clk 01:25:59]} {[%emt 00:02:38]}
d6 {[%clk 01:17:37]} {[%emt 00:08:14]} 6. O-O {[%clk 01:23:45]} {[%emt
00:02:42]} e5 {[%clk 01:16:01]} {[%emt 00:02:07]} 7. h3 {[%clk 01:22:36]}
{[%emt 00:01:39]} g5 {[%clk 01:10:50]} {[%emt 00:05:41]} 8. c3 {[%clk
01:16:48]} {[%emt 00:06:17]} g4 {[%clk 01:08:51]} {[%emt 00:02:30]} 9. hxg4
{[%clk 01:17:01]} {[%emt 00:00:17]} Bxg4 {[%clk 01:09:14]} {[%emt 00:00:07]} 10.
Qe3 {[%clk 01:14:17]} {[%emt 00:03:13]} h5 {[%clk 01:08:13]} {[%emt 00:01:32]}
11. Nh2 {[%clk 01:11:10]} {[%emt 00:03:37]} Bg5 {[%clk 01:01:56]} {[%emt
00:06:47]} 12. f4 {[%clk 01:08:35]} {[%emt 00:03:05]} Bh6 {[%clk 00:58:12]}
{[%emt 00:04:14]} 13. Nxg4 {[%clk 01:04:15]} {[%emt 00:04:50]} hxg4 {[%clk
00:58:26]} {[%emt 00:00:16]} 14. Na3 {[%clk 01:00:27]} {[%emt 00:04:17]} exf4
{[%clk 00:51:14]} {[%emt 00:07:43]} 15. gxf4 {[%clk 00:59:10]} {[%emt
00:01:46]} Qh4 {[%clk 00:51:37]} {[%emt 00:00:08]} 16. d4 {[%clk 00:56:35]}
{[%emt 00:03:05]} cxd4 {[%clk 00:43:54]} {[%emt 00:08:14]} 17. cxd4 {[%clk
00:56:16]} {[%emt 00:00:48]} Bg7 {[%clk 00:40:51]} {[%emt 00:03:33]} 18. e5
{[%clk 00:54:07]} {[%emt 00:02:39]} dxe5 {[%clk 00:34:36]} {[%emt 00:06:46]} 19.
dxe5 {[%clk 00:50:01]} {[%emt 00:04:35]} Nge7 {[%clk 00:28:31]} {[%emt
00:06:35]} 20. Qe4 {[%clk 00:46:20]} {[%emt 00:04:11]} O-O-O {[%clk 00:22:52]}
{[%emt 00:06:10]} 21. Be3 {[%clk 00:45:15]} {[%emt 00:01:32]} Nd5 {[%clk
00:16:32]} {[%emt 00:06:51]} 22. Rfc1 {[%clk 00:41:43]} {[%emt 00:04:02]} Qg3
{[%clk 00:13:39]} {[%emt 00:03:24]} 23. Bd2 {[%clk 00:30:44]} {[%emt 00:11:28]}
Rh3 {[%clk 00:12:27]} {[%emt 00:01:43]} 24. Nb5 {[%clk 00:28:59]} {[%emt
00:02:15]} Kb8 {[%clk 00:09:40]} {[%emt 00:03:17]} 25. Nd6 {[%clk 00:27:05]}
{[%emt 00:02:24]} Rxd6 {[%clk 00:09:43]} {[%emt 00:00:28]} 26. Rxc6 {[%clk
00:24:49]} {[%emt 00:02:46]} Qh2+ {[%clk 00:05:56]} {[%emt 00:04:17]} 27. Kf1
{[%clk 00:22:57]} {[%emt 00:02:22]} Rxc6 {[%clk 00:05:48]} {[%emt 00:00:38]} 28.
Qxd5 {[%clk 00:22:46]} {[%emt 00:00:41]} Rf3+ {[%clk 00:05:43]} {[%emt
00:00:35]} 29. Bxf3 {[%clk 00:22:34]} {[%emt 00:00:41]} gxf3 {[%clk 00:06:10]}
{[%emt 00:00:04]} 30. Qxf3 {[%clk 00:19:07]} {[%emt 00:03:57]} Qxd2 {[%clk
00:06:35]} {[%emt 00:00:05]} 31. Qg3 {[%clk 00:17:38]} {[%emt 00:01:59]} Rc2
{[%clk 00:06:38]} {[%emt 00:00:26]} 32. Re1 {[%clk 00:17:39]} {[%emt 00:00:29]}
Rc4 {[%clk 00:05:21]} {[%emt 00:01:48]} 0-1

[Event "Schack-SM 2024: Veteran-SM 65+"]
[Site "Fortnox Arena, Hejaregatan 5, Vaxjo, Sweden"]
[Date "2024.07.04"]
[Round "6.2"]
[White "Malmdin, Nils-Ake"]
[Black "Hedin, Gunnar"]
[Result "1/2-1/2"]
[TimeControl "90 minutes for 40 moves + 30 minutes for the rest of the game + 30 seconds per move from move one."]
[WhiteTitle "FM"]
[WhiteElo "2064"]
[BlackElo "2064"]

1. d4 {[%clk 01:30:40]} {[%emt 00:00:18]} e6 {[%clk 01:30:35]} {[%emt
00:00:26]} 2. Bf4 {[%clk 01:30:03]} {[%emt 00:01:06]} f5 {[%clk 01:29:48]}
{[%emt 00:01:18]} 3. e3 {[%clk 01:28:17]} {[%emt 00:02:15]} Nf6 {[%clk
01:29:32]} {[%emt 00:00:48]} 4. Bd3 {[%clk 01:28:16]} {[%emt 00:00:28]} b6
{[%clk 01:27:07]} {[%emt 00:02:57]} 5. Qe2 {[%clk 01:15:00]} {[%emt 00:13:45]}
Bb7 {[%clk 01:25:45]} {[%emt 00:01:54]} 6. f3 {[%clk 01:15:15]} {[%emt
00:00:14]} Nh5 {[%clk 01:16:39]} {[%emt 00:09:36]} 7. Nh3 {[%clk 01:07:09]}
{[%emt 00:08:35]} Nxf4 {[%clk 01:10:17]} {[%emt 00:06:53]} 8. Nxf4 {[%clk
01:07:19]} {[%emt 00:00:19]} Bd6 {[%clk 01:10:22]} {[%emt 00:00:26]} 9. Nd2
{[%clk 01:03:36]} {[%emt 00:04:12]} Bxf4 {[%clk 01:07:07]} {[%emt 00:03:46]} 10.
exf4 {[%clk 01:03:55]} {[%emt 00:00:10]} O-O {[%clk 01:06:59]} {[%emt
00:00:39]} 11. O-O-O {[%clk 01:03:27]} {[%emt 00:00:56]} Qf6 {[%clk 01:04:25]}
{[%emt 00:03:06]} 12. Qe3 {[%clk 01:00:23]} {[%emt 00:03:33]} Nc6 {[%clk
01:03:06]} {[%emt 00:01:51]} 13. c3 {[%clk 01:00:02]} {[%emt 00:00:49]} Ne7
{[%clk 01:03:13]} {[%emt 00:00:24]} 14. g3 {[%clk 00:58:17]} {[%emt 00:02:14]}
Rac8 {[%clk 01:01:50]} {[%emt 00:01:54]} 15. Kb1 {[%clk 00:50:10]} {[%emt
00:08:37]} Nd5 {[%clk 00:58:40]} {[%emt 00:03:41]} 16. Qf2 {[%clk 00:45:59]}
{[%emt 00:04:39]} c5 {[%clk 00:41:46]} {[%emt 00:17:25]} 17. Rhe1 {[%clk
00:40:08]} {[%emt 00:06:19]} cxd4 {[%clk 00:40:55]} {[%emt 00:01:22]} 18. Qxd4
{[%clk 00:35:32]} {[%emt 00:05:04]} Qxd4 {[%clk 00:41:10]} {[%emt 00:00:17]} 19.
cxd4 {[%clk 00:35:51]} {[%emt 00:00:09]} Nb4 {[%clk 00:38:46]} {[%emt
00:02:56]} 20. Bb5 {[%clk 00:34:45]} {[%emt 00:01:35]} Bc6 {[%clk 00:36:55]}
{[%emt 00:02:23]} 21. Bxc6 {[%clk 00:33:53]} {[%emt 00:01:21]} Rxc6 {[%clk
00:36:35]} {[%emt 00:00:50]} 22. a3 {[%clk 00:27:57]} {[%emt 00:06:26]} Nc2
{[%clk 00:35:23]} {[%emt 00:01:43]} 23. d5 {[%clk 00:28:08]} {[%emt 00:00:18]}
Rc5 {[%clk 00:21:10]} {[%emt 00:14:45]} 24. Re5 {[%clk 00:27:45]} {[%emt
00:00:50]} Nd4 {[%clk 00:21:03]} {[%emt 00:00:39]} 25. dxe6 {[%clk 00:27:14]}
{[%emt 00:01:00]} dxe6 {[%clk 00:20:19]} {[%emt 00:01:14]} 26. Rxc5 {[%clk
00:25:51]} {[%emt 00:01:53]} bxc5 {[%clk 00:20:47]} {[%emt 00:00:03]} 27. Rc1
{[%clk 00:25:48]} {[%emt 00:00:31]} Rc8 {[%emt 00:07:05]} 28. b4 {[%clk
00:22:35]} {[%emt 00:01:38]} c4 {[%clk 00:09:50]} {[%emt 00:06:58]} 29. Rxc4
{[%clk 00:19:38]} {[%emt 00:03:27]} Rd8 {[%clk 00:10:00]} {[%emt 00:00:21]} 30.
a4 {[%clk 00:16:23]} {[%emt 00:03:45]} Rd7 {[%clk 00:10:10]} {[%emt 00:00:21]}
31. b5 {[%clk 00:15:29]} {[%emt 00:01:23]} Kf7 {[%clk 00:07:32]} {[%emt
00:03:08]} 32. Kc1 {[%clk 00:12:14]} {[%emt 00:03:44]} Kf6 {[%clk 00:07:26]}
{[%emt 00:00:36]} 33. Rc5 {[%clk 00:11:03]} {[%emt 00:01:41]} g5 {[%clk
00:05:45]} {[%emt 00:02:12]} 34. fxg5+ {[%clk 00:10:42]} {[%emt 00:00:51]} Kxg5
{[%clk 00:06:14]} {[%emt 00:00:01]} 35. a5 {[%clk 00:09:48]} {[%emt 00:01:24]}
Rb7 {[%clk 00:05:44]} {[%emt 00:01:00]} 36. Ne4+ {[%clk 00:06:01]} {[%emt
00:04:16]} Kg6 {[%clk 00:05:34]} {[%emt 00:00:40]} 37. Nd6 {[%clk 00:05:42]}
{[%emt 00:00:48]} Nb3+ {[%clk 00:05:44]} {[%emt 00:00:21]} 38. Kc2 {[%clk
00:05:50]} {[%emt 00:00:17]} Nxc5 {[%clk 00:06:11]} {[%emt 00:00:08]} 39. Nxb7
{[%clk 00:05:52]} {[%emt 00:00:29]} Nxb7 {[%clk 00:06:39]} {[%emt 00:00:01]} 40.
a6 {[%clk 00:05:57]} {[%emt 00:00:24]} Nd8 {[%clk 00:03:24]} {[%emt 00:03:47]}
41. Kd3 {[%clk 00:30:12]} {[%emt 00:06:13]} Kf6 {[%clk 00:27:39]} {[%emt
00:06:15]} 42. Kd4 {[%clk 00:29:06]} {[%emt 00:01:36]} Ke7 {[%clk 00:26:21]}
{[%emt 00:01:48]} 43. Kc5 {[%clk 00:28:45]} {[%emt 00:00:51]} Kd7 {[%clk
00:25:26]} {[%emt 00:01:26]} 44. b6 {[%clk 00:28:47]} {[%emt 00:00:27]} axb6+
{[%clk 00:23:19]} {[%emt 00:02:38]} 45. Kxb6 {[%clk 00:29:05]} {[%emt
00:00:10]} Nc6 {[%clk 00:23:33]} {[%emt 00:00:18]} 46. f4 {[%clk 00:28:16]}
{[%emt 00:01:18]} Kd6 {[%clk 00:22:53]} {[%emt 00:01:10]} 47. Kb7 {[%clk
00:27:50]} {[%emt 00:00:56]} Nd8+ {[%emt 00:03:35]} 1/2-1/2

[Event "Schack-SM 2024: Veteran-SM 65+"]
[Site "Fortnox Arena, Hejaregatan 5, Vaxjo, Sweden"]
[Date "2024.07.03"]
[Round "5.1"]
[White "Engstrom, Kaj"]
[Black "Blomstrom, Lars"]
[Result "1-0"]
[TimeControl "90 minutes for 40 moves + 30 minutes for the rest of the game + 30 seconds per move from move one."]
[WhiteElo "2163"]
[BlackElo "2122"]

1. e4 {[%clk 01:30:56]} {[%emt 00:00:03]} e5 {[%clk 01:30:57]} {[%emt
00:00:04]} 2. Nf3 {[%clk 01:31:16]} {[%emt 00:00:11]} Nc6 {[%clk 01:31:21]}
{[%emt 00:00:05]} 3. Bc4 {[%clk 01:31:36]} {[%emt 00:00:11]} Bc5 {[%clk
01:31:24]} {[%emt 00:00:26]} 4. d3 {[%clk 01:30:42]} {[%emt 00:01:25]} Nf6
{[%clk 01:30:29]} {[%emt 00:01:24]} 5. O-O {[%clk 01:30:36]} {[%emt 00:00:36]}
O-O {[%clk 01:26:03]} {[%emt 00:04:56]} 6. Bg5 {[%clk 01:27:41]} {[%emt
00:03:24]} h6 {[%clk 01:25:39]} {[%emt 00:00:54]} 7. Bh4 {[%clk 01:27:46]}
{[%emt 00:00:26]} Be7 {[%clk 01:24:50]} {[%emt 00:01:19]} 8. c3 {[%clk
01:20:03]} {[%emt 00:08:13]} d6 {[%clk 01:21:48]} {[%emt 00:03:32]} 9. Nbd2
{[%clk 01:19:13]} {[%emt 00:01:21]} Na5 {[%clk 01:18:34]} {[%emt 00:03:43]} 10.
Bb5 {[%clk 01:18:43]} {[%emt 00:01:00]} a6 {[%clk 01:18:56]} {[%emt 00:00:09]}
11. Ba4 {[%clk 01:19:09]} {[%emt 00:00:04]} b5 {[%clk 01:18:55]} {[%emt
00:00:30]} 12. Bc2 {[%clk 01:19:34]} {[%emt 00:00:05]} c5 {[%clk 01:19:00]}
{[%emt 00:00:25]} 13. d4 {[%clk 01:17:23]} {[%emt 00:02:41]} Qc7 {[%clk
01:11:09]} {[%emt 00:08:21]} 14. Bg3 {[%clk 01:02:33]} {[%emt 00:15:20]} Nc6
{[%clk 01:09:43]} {[%emt 00:01:56]} 15. d5 {[%clk 00:58:56]} {[%emt 00:04:07]}
Na5 {[%clk 01:08:50]} {[%emt 00:01:22]} 16. Ne1 {[%clk 00:55:27]} {[%emt
00:03:59]} c4 {[%clk 01:02:21]} {[%emt 00:06:59]} 17. Ndf3 {[%clk 00:48:33]}
{[%emt 00:07:24]} Nh5 {[%clk 00:48:41]} {[%emt 00:14:10]} 18. Nh4 {[%clk
00:46:45]} {[%emt 00:02:19]} Nxg3 {[%clk 00:44:54]} {[%emt 00:04:17]} 19. fxg3
{[%clk 00:42:44]} {[%emt 00:04:30]} g6 {[%clk 00:44:37]} {[%emt 00:00:46]} 20.
Nef3 {[%clk 00:39:34]} {[%emt 00:03:41]} Nb7 {[%clk 00:43:14]} {[%emt
00:01:53]} 21. Qd2 {[%clk 00:37:36]} {[%emt 00:02:29]} Kg7 {[%clk 00:40:57]}
{[%emt 00:02:46]} 22. h3 {[%clk 00:36:00]} Nc5 {[%clk 00:35:40]} {[%emt
00:07:53]} 23. g4 {[%clk 00:34:52]} {[%emt 00:01:38]} Qd8 {[%clk 00:19:57]}
{[%emt 00:16:13]} 24. g3 {[%clk 00:34:05]} Bd7 {[%clk 00:19:39]} {[%emt
00:02:06]} 25. Rf2 {[%clk 00:31:39]} Rb8 {[%clk 00:16:22]} {[%emt 00:06:42]} 26.
Ng2 {[%clk 00:30:25]} a5 {[%clk 00:12:53]} {[%emt 00:05:44]} 27. Ne3 {[%clk
00:29:23]} Bg5 {[%clk 00:11:32]} {[%emt 00:03:22]} 28. Nxg5 {[%clk 00:29:15]}
hxg5 {[%clk 00:09:16]} {[%emt 00:03:24]} 29. Raf1 {[%clk 00:28:12]} Qe7 {[%clk
00:09:04]} {[%emt 00:02:15]} 30. Rh2 {[%clk 00:19:41]} Rh8 {[%clk 00:09:04]}
{[%emt 00:09:31]} 31. Qf2 {[%clk 00:19:34]} b4 {[%clk 00:04:51]} {[%emt
00:05:21]} 32. Qd2 {[%clk 00:11:45]} b3 {[%clk 00:03:50]} {[%emt 00:09:50]} 33.
axb3 {[%clk 00:11:49]} cxb3 {[%clk 00:04:07]} {[%emt 00:00:39]} 34. Bb1 {[%clk
00:12:15]} a4 {[%clk 00:03:59]} {[%emt 00:00:43]} 35. Qf2 {[%clk 00:11:46]} Bb5
{[%clk 00:03:33]} {[%emt 00:01:52]} 36. c4 {[%clk 00:12:07]} {[%emt 00:00:11]}
Bd7 {[%clk 00:03:45]} {[%emt 00:00:05]} 37. h4 {[%clk 00:08:54]} {[%emt
00:02:58]} Ra8 {[%clk 00:02:04]} 38. Qf3 {[%clk 00:08:54]} Raf8 {[%clk
00:02:04]} {[%emt 00:04:08]} 39. h5 {[%clk 00:08:21]} {[%emt 00:01:04]} Be8
{[%clk 00:01:20]} {[%emt 00:01:13]} 40. Kf2 {[%clk 00:06:51]} {[%emt 00:02:01]}
Qf6 {[%clk 00:00:57]} {[%emt 00:00:53]} 41. Rfh1 {[%clk 00:06:30]} {[%emt
00:00:50]} Qxf3+ {[%clk 00:01:21]} {[%emt 00:00:07]} 42. Kxf3 {[%clk 00:06:55]}
{[%emt 00:00:05]} Bd7 {[%clk 00:00:52]} {[%emt 00:00:59]} 43. Ke2 {[%clk
00:07:00]} {[%emt 00:00:25]} Na6 {[%clk 00:17:57]} {[%emt 00:13:24]} 44. Kd2
{[%clk 00:36:48]} {[%emt 00:00:43]} Nc7 {[%clk 00:18:09]} {[%emt 00:00:17]} 45.
Kc3 {[%clk 00:32:36]} {[%emt 00:04:42]} Na6 {[%clk 00:18:15]} {[%emt 00:00:25]}
46. Rf2 {[%clk 00:31:31]} {[%emt 00:01:35]} Nc5 {[%clk 00:17:52]} {[%emt
00:00:54]} 47. Rfh2 {[%clk 00:29:48]} {[%emt 00:02:12]} Ra8 {[%clk 00:17:43]}
{[%emt 00:00:39]} 48. Kd2 {[%clk 00:26:28]} {[%emt 00:03:50]} Rab8 {[%clk
00:17:16]} {[%emt 00:00:56]} 49. Ke2 {[%clk 00:26:15]} {[%emt 00:00:43]} Ra8
{[%clk 00:17:11]} {[%emt 00:00:36]} 50. Kd2 {[%clk 00:20:17]} {[%emt 00:06:28]}
a3 {[%clk 00:16:24]} {[%emt 00:01:17]} 51. bxa3 {[%clk 00:20:39]} {[%emt
00:00:07]} Rxa3 {[%clk 00:16:53]} 52. h6+ {[%clk 00:20:30]} {[%emt 00:00:40]}
Kf8 {[%clk 00:15:54]} {[%emt 00:01:27]} 53. Rc1 {[%clk 00:19:13]} {[%emt
00:01:49]} Ra1 {[%clk 00:12:47]} {[%emt 00:03:38]} 54. Kc3 {[%clk 00:15:06]}
{[%emt 00:04:37]} Na4+ {[%clk 00:08:32]} {[%emt 00:04:45]} 55. Kxb3 {[%clk
00:15:21]} {[%emt 00:00:15]} Ke7 {[%clk 00:07:41]} {[%emt 00:01:20]} 56. Nd1
{[%clk 00:05:42]} {[%emt 00:10:09]} Bxg4 {[%clk 00:05:50]} {[%emt 00:02:22]} 57.
Nc3 {[%clk 00:05:28]} {[%emt 00:00:44]} Nxc3 {[%clk 00:04:52]} {[%emt
00:01:28]} 58. Kxc3 {[%clk 00:05:49]} {[%emt 00:00:08]} Ra3+ {[%clk 00:05:00]}
{[%emt 00:00:22]} 59. Kd2 {[%clk 00:06:04]} {[%emt 00:00:16]} Rxg3 {[%clk
00:05:17]} {[%emt 00:00:13]} 60. c5 {[%clk 00:06:27]} {[%emt 00:00:07]} dxc5
{[%clk 00:05:15]} {[%emt 00:00:32]} 61. Rxc5 {[%clk 00:06:03]} {[%emt
00:00:54]} Rh3 {[%clk 00:05:09]} {[%emt 00:00:35]} 62. Rc7+ {[%clk 00:05:28]}
{[%emt 00:01:05]} Kd6 {[%clk 00:04:03]} {[%emt 00:01:36]} 63. Rc6+ {[%clk
00:02:42]} {[%emt 00:03:17]} Kd7 {[%clk 00:04:27]} {[%emt 00:00:06]} 64. Rf2
{[%clk 00:02:57]} {[%emt 00:00:15]} Ke7 {[%clk 00:01:46]} {[%emt 00:03:11]} 65.
Rc7+ {[%clk 00:01:42]} {[%emt 00:01:44]} Bd7 {[%clk 00:02:05]} {[%emt
00:00:10]} 66. Bd3 {[%clk 00:02:08]} {[%emt 00:00:05]} Kd6 {[%clk 00:02:06]}
{[%emt 00:00:30]} 67. Ra7 {[%clk 00:02:20]} {[%emt 00:00:18]} R3xh6 {[%clk
00:01:40]} {[%emt 00:00:55]} 68. Rxf7 {[%clk 00:02:25]} {[%emt 00:00:26]} Rh2+
{[%clk 00:01:52]} {[%emt 00:00:17]} 69. Kc3 {[%clk 00:01:37]} {[%emt 00:01:19]}
Rc8+ {[%clk 00:02:10]} {[%emt 00:00:11]} 70. Kb3 {[%clk 00:01:30]} {[%emt
00:00:38]} Bg4 {[%clk 00:01:43]} {[%emt 00:00:57]} 71. Rf6+ {[%clk 00:01:22]}
{[%emt 00:00:38]} Kc5 {[%clk 00:02:03]} {[%emt 00:00:08]} 72. Kc3 {[%clk
00:01:46]} {[%emt 00:00:07]} 1-0